bitfinex/quotes_ETHUSD_20241106
["timestamp","ask_amount","ask_price","bid_price","bid_amount"]
[1730874550410,3.8376,2605.8,2603.5,0.02]
[1730874550571,3.8376,2605.8,2603.4,0.1266823]
[1730874550572,3.8376,2605.8,2603.8,0.01]
[1730874550771,3.8376,2605.8,2603.6,0.01]
[1730874550972,0.8199,2605.9,2603.8,0.01]
[1730874551173,0.8199,2605.9,2604.1,0.01]
[1730874551411,3.83596,2607.0,2604.7,0.01]
[1730874551412,0.8199,2606.5,2604.7,0.01]
[1730874551618,0.8199,2606.5,2604.4,0.01]
[1730874551619,1.40139805,2606.5,2604.4,0.01]
[1730874551815,1.40139805,2606.5,2604.7,0.01]
[1730874552370,3.83593,2607.0,2604.9,0.01]
[1730874552720,0.8199,2607.1,2605.3,0.01]
[1730874553476,0.8199,2607.1,2605.1,0.02]
[1730874553780,0.8199,2607.6,2605.3,0.01]
[1730874553980,0.8199,2607.6,2605.5,0.01]
[1730874554206,0.58149805,2607.5,2605.5,0.01]
[1730874554415,0.58149805,2607.5,2605.2,0.01]
[1730874554721,0.58149805,2607.5,2605.1,0.01]
[1730874554899,3.83582,2607.1,2605.1,0.01]
[1730874555104,0.8199,2606.9,2604.6,0.01]
[1730874555276,3.0,2606.6,2604.6,0.01]
[1730874555489,6.83645,2606.6,2604.6,0.01]
[1730874555815,3.83658,2606.5,2604.6,0.01]
[1730874556018,0.55,2606.4,2604.5,0.01]
[1730874556227,0.55,2607.0,2605.0,0.01]
[1730874556374,0.55,2607.0,2604.9,0.01]
[1730874556574,0.55,2606.8,2604.9,0.01]
[1730874556824,0.55,2606.8,2605.0,0.01]
[1730874557125,3.0,2606.7,2604.9,0.01]
[1730874557279,0.55,2606.6,2604.9,0.01]
[1730874557623,5.81498053,2606.7,2603.9,0.01]
[1730874557827,3.55,2605.4,2603.6,0.01]
[1730874557985,3.55,2605.4,2603.5,0.01]
[1730874558517,7.38818,2605.4,2603.5,0.01]
[1730874558704,3.55,2605.4,2603.4,0.1266823]
[1730874559015,0.55,2605.2,2603.4,0.1266823]
[1730874559719,0.55,2605.3,2603.8,0.01]
[1730874559880,4.65685,2606.3,2604.0,0.01]
[1730874560086,4.65685,2606.3,2604.1,0.01]
[1730874560322,4.65685,2606.3,2604.0,0.01]
[1730874560323,8.83246053,2606.0,2604.0,0.01]
[1730874560526,0.88324605,2605.9,2604.1,0.01]
[1730874560989,0.88324605,2605.9,2604.2,0.01]
[1730874561194,4.65678,2606.3,2604.2,0.01]
[1730874561614,3.8199,2606.3,2604.2,0.01]
[1730874561815,3.0,2606.4,2604.3,0.01]
[1730874562141,4.99508053,2606.5,2604.4,0.01]
[1730874562298,1.10033976,2606.4,2604.4,0.01]
[1730874562634,1.10033976,2606.4,2604.1,0.01]
[1730874562635,5.48221322,2606.4,2604.1,0.01]
[1730874562843,3.83709,2606.2,2604.0,0.01]
[1730874563044,3.83769,2605.8,2603.9,0.01]
[1730874563337,3.55,2605.4,2603.4,0.1466823]
[1730874564134,3.83834,2605.3,2603.4,0.1266823]
[1730874564292,3.0,2605.4,2603.6,0.02]
[1730874564489,3.0,2605.3,2603.4,0.1366823]
[1730874564693,3.383769,2605.7,2603.6,0.01]
[1730874564991,0.7221479,2605.6,2603.6,0.01]
[1730874565229,0.7221479,2605.6,2603.5,0.01]
[1730874565230,0.7221479,2605.6,2603.8,0.02]
[1730874565395,0.383769,2605.7,2603.6,0.01]
[1730874565607,3.0,2605.6,2603.7,0.01]
[1730874565824,3.0,2605.6,2603.6,0.01]
[1730874566023,3.0,2605.6,2603.6,0.02]
[1730874566227,3.83806,2605.5,2603.4,0.1366823]
[1730874566392,3.0,2605.6,2603.4,0.1366823]
[1730874566393,9.22888653,2605.4,2603.4,0.1266823]
[1730874566599,3.0,2605.1,2603.4,0.1266823]
[1730874566903,6.83864,2605.1,2603.4,0.1266823]
[1730874567337,3.83893,2604.9,2603.4,0.1266823]
[1730874567545,3.83879,2605.0,2603.4,0.1266823]
[1730874567706,0.55,2604.6,2603.4,0.1266823]
[1730874567911,0.55,2604.5,2603.4,0.1266823]
[1730874568116,3.55,2603.6,2603.4,0.1266823]
[1730874568499,0.55,2603.7,2603.4,0.1266823]
[1730874568740,0.55,2603.5,2603.4,0.1266823]
[1730874568970,0.55,2603.5,2603.4,0.03792087]
[1730874569267,0.55,2603.5,2601.8,0.09285107]
[1730874569469,0.55,2603.3,2601.9,0.33277874]
[1730874569642,0.55,2603.5,2601.9,0.09285107]
[1730874569836,0.55,2603.3,2601.9,0.09285107]
[1730874570037,0.55,2603.7,2601.9,0.11285107]
[1730874570369,4.99508053,2604.4,2601.9,0.11285107]
[1730874570370,3.0,2604.2,2602.2,0.01]
[1730874570663,3.0,2604.3,2602.3,0.09351924]
[1730874570875,3.0,2604.3,2602.4,0.09351924]
[1730874571023,1.18347305,2604.2,2602.4,0.09351924]
[1730874571228,1.18347305,2604.2,2602.7,0.09351924]
[1730874571424,4.99508053,2604.5,2603.0,0.09351924]
[1730874571731,3.83989,2604.3,2602.9,0.24004549]
[1730874571964,4.99508053,2604.0,2602.6,0.09351924]
[1730874572157,3.84055,2603.8,2602.7,0.24004549]
[1730874572425,3.84055,2603.8,2601.5,0.01]
[1730874572426,8.83616053,2603.5,2602.4,0.09351924]
[1730874572761,0.55,2603.3,2602.5,0.24007168]
[1730874572959,0.55,2603.1,2602.6,0.24007168]
[1730874573166,0.55,2603.1,2602.3,0.09351924]
[1730874573167,3.55,2602.9,2602.2,0.09351924]
[1730874573348,3.55,2602.9,2602.3,0.24012521]
[1730874573666,3.55,2602.9,2602.0,0.09351924]
[1730874573839,0.55,2602.7,2602.1,0.24012615]
[1730874574049,0.55,2602.7,2602.2,0.24012615]
[1730874574256,0.55,2602.7,2602.0,0.09351924]
[1730874574561,0.55,2602.7,2602.1,0.24013894]
[1730874574732,0.55,2602.7,2602.0,0.09351924]
[1730874574733,0.55,2602.7,2602.2,0.24013894]
[1730874574926,0.55,2602.7,2601.8,0.09351924]
[1730874575162,0.55,2602.7,2601.9,0.2401482]
[1730874575373,1.23868205,2602.8,2601.6,0.09351924]
[1730874575374,3.55,2602.5,2601.6,0.09351924]
[1730874575554,0.55,2602.3,2601.7,0.24016796]
[1730874575757,0.55,2602.7,2601.8,0.24016796]
[1730874576069,0.88361605,2603.4,2601.9,0.24016796]
[1730874576400,0.88361605,2603.4,2602.0,0.3336872]
[1730874576664,0.88361605,2603.4,2602.1,0.3336872]
[1730874576879,3.84041,2603.9,2602.2,0.3336872]
[1730874577166,5.39508614,2604.0,2602.3,0.3336872]
[1730874577375,3.84079,2603.7,2602.4,0.24007827]
[1730874577530,4.23793584,2603.9,2602.4,0.24007827]
[1730874577739,3.84061,2603.8,2602.5,0.24007827]
[1730874577966,0.42380558,2603.7,2602.2,0.09382524]
[1730874578166,0.39744584,2603.9,2602.3,0.2400839]
[1730874578373,0.39744584,2603.9,2602.2,0.09382524]
[1730874578374,3.0,2603.3,2602.4,0.2400839]
[1730874578571,3.0,2603.3,2602.5,0.2400839]
[1730874578738,6.84159,2603.1,2601.9,0.09382524]
[1730874578953,0.7938,2603.3,2601.8,0.09382524]
[1730874578954,3.84298,2602.2,2601.8,0.09382524]
[1730874579141,0.7938,2602.8,2600.9,0.1266823]
[1730874579142,0.55,2602.0,2601.2,0.09382524]
[1730874579342,3.55,2601.9,2600.9,0.22050754]
[1730874579542,3.55,2601.9,2601.0,0.09382524]
[1730874579543,0.55,2601.9,2601.0,0.09382524]
[1730874579791,0.55,2601.9,2600.9,0.1266823]
[1730874580309,0.55,2602.5,2600.9,0.22050754]
[1730874580472,0.55,2602.3,2601.0,0.09382524]
[1730874580812,0.55,2602.4,2601.0,0.09382524]
[1730874580970,0.55,2602.4,2600.9,0.22050754]
[1730874581174,0.55,2602.6,2600.9,0.22050754]
[1730874581409,0.55,2602.8,2601.0,0.09382524]
[1730874581581,0.55,2602.6,2601.0,0.09382524]
[1730874581778,0.55,2602.6,2601.1,0.09382524]
[1730874582313,7.63538,2603.1,2601.2,0.09382524]
[1730874582471,3.0,2603.0,2601.2,0.09382524]
[1730874582903,0.7938,2603.1,2601.2,0.09368831]
[1730874583085,8.83613053,2603.5,2601.5,0.09368831]
[1730874583288,0.88361305,2603.4,2601.6,0.09368831]
[1730874583711,4.40238697,2603.3,2601.7,0.09368831]
[1730874583869,4.40238697,2603.3,2601.5,0.09368831]
[1730874584069,0.56103697,2603.3,2601.6,0.09368831]
[1730874584415,0.88361305,2603.4,2601.4,0.01]
[1730874584719,3.0,2603.4,2601.7,0.09376805]
[1730874584884,3.84152,2603.2,2601.9,0.09376805]
[1730874585217,3.0,2603.1,2601.6,0.09376805]
[1730874585387,3.84179,2603.0,2601.6,0.09376805]
[1730874585719,3.0,2602.7,2601.5,0.09376805]
[1730874585929,3.55,2602.2,2600.9,0.1266823]
[1730874586079,0.55,2602.3,2600.9,0.1266823]
[1730874586281,3.55,2602.1,2600.9,0.1266823]
[1730874586509,0.55,2602.1,2600.9,0.1266823]
[1730874586710,0.795,2602.8,2600.9,0.1266823]
[1730874586711,3.55,2602.3,2600.9,0.1266823]
[1730874586928,0.55,2602.1,2600.9,0.1266823]
[1730874587277,0.55,2602.1,2601.0,0.24020169]
[1730874587511,0.55,2602.1,2601.1,0.24020169]
[1730874587737,0.55,2602.1,2601.2,0.24020169]
[1730874588045,0.55,2602.7,2601.3,0.24020169]
[1730874588203,0.795,2602.8,2601.4,0.24020169]
[1730874588403,0.3795,2602.7,2601.5,0.24020169]
[1730874588636,0.3795,2602.7,2601.4,0.24020169]
[1730874588803,0.3795,2602.7,2601.5,0.24020169]
[1730874589013,0.3795,2602.7,2601.6,0.24020169]
[1730874589216,3.3795,2602.7,2600.9,0.1266823]
[1730874589547,3.3795,2602.7,2601.0,0.24016311]
[1730874589548,3.55,2602.6,2601.0,0.24016311]
[1730874589753,0.55,2602.6,2601.1,0.33325012]
[1730874589899,0.55,2602.6,2600.9,0.1266823]
[1730874589900,1.9340579,2602.8,2601.3,0.09308701]
[1730874590106,0.59030769,2602.8,2601.5,0.09308701]
[1730874590304,0.59030769,2602.8,2601.6,0.24016311]
[1730874590539,0.59030769,2602.8,2601.5,0.09308701]
[1730874590540,0.3969019,2602.8,2601.7,0.24016311]
[1730874590771,0.3969019,2602.8,2601.5,0.09308701]
[1730874590772,0.3969019,2602.8,2601.8,0.24016311]
[1730874591052,0.3969019,2602.8,2601.3,0.09308701]
[1730874591219,0.3969019,2602.8,2601.4,0.09308701]
[1730874591419,0.3969019,2602.8,2600.9,0.1266823]
[1730874591420,0.3969019,2602.8,2601.5,0.09308701]
[1730874591623,0.3969019,2602.8,2601.6,0.09308701]
[1730874591827,4.99508053,2603.0,2601.6,0.09308701]
[1730874592015,4.99508053,2603.0,2601.5,0.09308701]
[1730874592216,3.84213,2602.8,2601.6,0.09308701]
[1730874592439,0.795,2602.8,2601.4,0.09308701]
[1730874592742,3.795,2602.8,2601.4,0.09308701]
[1730874593042,0.55,2602.7,2601.4,0.04308701]
[1730874593244,4.39204,2602.8,2600.9,0.1266823]
[1730874593442,0.55,2602.6,2600.9,0.1266823]
[1730874593847,0.55,2602.8,2600.9,0.1266823]
[1730874594146,3.56103697,2603.3,2600.9,0.1266823]
[1730874594354,3.0,2603.3,2601.0,0.01]
[1730874594650,0.39646868,2603.3,2601.0,0.02]
[1730874594855,0.39646868,2603.3,2601.4,0.01]
[1730874595033,4.99508053,2603.5,2601.2,3.0]
[1730874595240,3.84114,2603.4,2601.0,0.31466823]
[1730874595444,3.84135,2603.3,2600.9,0.1366823]
[1730874595755,3.84113,2603.4,2601.0,3.0]
[1730874595958,8.83687053,2603.0,2600.9,0.1266823]
[1730874596121,0.55,2602.9,2600.9,3.1366823]
[1730874596319,0.55,2603.1,2600.9,3.1366823]
[1730874596550,0.55,2602.9,2601.0,0.31366823]
[1730874596724,0.55,2602.9,2600.9,3.1366823]
[1730874596933,0.55,2602.9,2600.9,0.1366823]
[1730874597252,0.55,2602.9,2600.9,3.1366823]
[1730874597418,0.55,2602.9,2600.9,0.1366823]
[1730874597622,0.55,2602.9,2601.0,3.0]
[1730874597938,0.55,2602.9,2601.1,0.32366823]
[1730874598141,0.55,2602.9,2600.9,0.1466823]
[1730874598319,0.55,2603.1,2600.9,0.1466823]
[1730874598519,0.55,2602.9,2600.9,3.1266823]
[1730874598920,0.55,2603.0,2600.9,3.1266823]
[1730874599361,9.32818053,2603.0,2600.9,0.1266823]
[1730874599667,3.55,2602.7,2600.9,0.1266823]
[1730874599824,0.55,2602.7,2600.9,0.1266823]
[1730874600143,3.7831,2603.3,2600.9,0.1266823]
[1730874600346,0.6074865,2603.4,2601.2,0.01]
[1730874600523,3.84121,2603.4,2601.0,0.02]
[1730874600719,0.88362905,2603.3,2601.2,0.01]
[1730874600946,0.88362905,2603.3,2601.2,0.02]
[1730874601152,4.62313,2604.2,2601.5,0.01]
[1730874601351,0.626873,2604.0,2601.6,1.00334502]
[1730874601555,0.626873,2604.0,2601.7,0.63685785]
[1730874601820,3.8421,2602.8,2600.3,0.01]
[1730874602053,3.84241,2602.6,2601.0,0.12002654]
[1730874602261,0.384241,2602.5,2601.0,0.12002654]
[1730874602428,0.384241,2602.5,2599.9,0.01]
[1730874602429,3.84262,2602.4,2599.9,0.01]
[1730874602799,8.83761053,2602.5,2600.0,0.12002654]
[1730874602962,0.55,2602.4,2599.9,0.02]
[1730874603289,0.55,2602.1,2600.0,0.12002654]
[1730874603583,0.55,2602.1,2599.8,0.13002654]
[1730874603887,0.55,2602.1,2600.0,0.01]
[1730874604183,4.39305,2602.1,2599.8,0.01]
[1730874604488,0.55,2601.9,2601.6,0.09401831]
[1730874604692,0.55,2601.9,2601.7,0.09401831]
[1730874604845,0.55,2601.9,2601.7,0.09330992]
[1730874605045,0.55,2601.9,2601.6,0.09336716]
[1730874605249,0.55,2601.9,2601.7,2.23469771]
[1730874605595,0.55,2601.9,2601.7,7.63094587]
[1730874605744,0.55,2601.9,2601.7,12.08334317]
[1730874605944,0.55,2601.9,2601.7,13.93380754]
[1730874606149,0.55,2601.9,2601.7,14.14527526]
[1730874607001,0.60154918,2602.6,2601.7,14.14527526]
[1730874607171,3.84113,2603.4,2601.7,14.14527526]
[1730874607512,3.84173,2603.0,2601.7,14.14527526]
[1730874607661,3.84145,2603.2,2601.7,14.14527526]
[1730874607662,7.68301,2603.2,2601.7,14.14527526]
[1730874607993,3.84158,2603.1,2601.7,14.14527526]
[1730874608199,0.81037267,2603.1,2601.7,14.14527526]
[1730874608359,3.76508053,2603.4,2601.7,14.14527526]
[1730874609699,0.55,2603.3,2601.7,14.14527526]
[1730874609907,0.55,2603.4,2601.7,14.14527526]
[1730874610061,3.84058,2603.8,2601.8,3.0]
[1730874610062,3.0,2603.8,2601.8,3.0]
[1730874610265,0.91746804,2603.7,2601.8,3.0]
[1730874611205,0.91746804,2603.7,2601.7,14.14527526]
[1730874611206,3.84108,2603.5,2601.7,14.14527526]
[1730874611364,3.84152,2603.2,2601.7,14.14527526]
[1730874611565,0.768279,2603.1,2601.7,14.14527526]
[1730874611890,0.55,2603.0,2601.7,14.14527526]
[1730874612959,0.39686993,2603.3,2601.7,14.14527526]
[1730874613404,7.62394,2603.6,2601.7,14.14527526]
[1730874613719,3.84264,2602.4,2601.7,14.14527526]
[1730874613916,0.384264,2602.3,2601.7,14.14527526]
[1730874614131,4.99508053,2602.7,2601.7,14.14527526]
[1730874614293,0.55,2602.8,2601.7,14.14527526]
[1730874614498,0.55,2603.0,2601.7,14.14527526]
[1730874614817,7.70847975,2603.6,2601.7,14.14527526]
[1730874614982,3.84122,2603.4,2601.7,14.14527526]
[1730874615181,7.70847975,2603.6,2601.7,14.14527526]
[1730874615182,3.84168,2603.1,2601.7,14.14527526]
[1730874615410,0.384122,2603.3,2601.7,14.14527526]
[1730874615631,7.70851975,2603.6,2601.7,14.14527526]
[1730874616132,3.0,2603.5,2601.7,14.14527526]
[1730874616499,0.55,2603.2,2601.7,14.14527526]
[1730874616828,3.84158,2603.1,2601.7,14.14527526]
[1730874616981,0.55,2603.0,2601.7,14.14527526]
[1730874617182,0.55,2602.8,2601.7,14.14527526]
[1730874617748,0.55,2602.5,2601.7,14.14527526]
[1730874618085,0.55,2602.6,2601.7,14.14527526]
[1730874618947,4.39233,2602.6,2601.7,14.14527526]
[1730874619224,1.239658,2602.9,2601.7,14.14527526]
[1730874619225,3.55,2602.8,2601.7,14.14527526]
[1730874619395,4.281108,2602.9,2601.7,14.14527526]
[1730874619396,0.55,2602.6,2601.7,14.14527526]
[1730874619737,3.55,2602.8,2601.7,14.14527526]
[1730874620291,0.55,2602.7,2601.7,14.14527526]
[1730874620495,0.55,2602.7,2601.7,12.72135318]
[1730874620496,3.8005,2602.6,2601.7,12.72135318]
[1730874620826,0.55,2601.8,2601.7,12.72135318]
[1730874620988,0.905,2601.8,2601.7,12.72135318]
[1730874622105,0.905,2601.8,2601.7,0.95745794]
[1730874622311,3.84434,2601.3,2600.9,0.1266823]
[1730874622545,3.84461,2601.1,2599.9,0.09328662]
[1730874622745,3.55,2601.0,2599.7,0.09328662]
[1730874622961,0.55,2600.8,2599.6,0.09328662]
[1730874623165,0.55,2600.8,2599.4,0.09328662]
[1730874623756,3.0,2601.5,2599.5,0.09328662]
[1730874624057,0.55,2601.4,2599.6,0.09328662]
[1730874624227,0.94655415,2601.4,2599.6,0.09328662]
[1730874624411,0.55,2601.2,2599.5,0.09328662]
[1730874624609,4.3944,2601.2,2599.5,0.09328662]
[1730874625132,0.55,2601.2,2599.3,3.0]
[1730874625369,1.3505,2600.9,2598.4,0.01]
[1730874625512,0.55,2600.6,2599.0,0.09274977]
[1730874625716,0.55,2600.6,2598.9,0.61954907]
[1730874626016,0.55,2600.7,2598.9,0.61954907]
[1730874626265,0.55,2600.7,2598.9,0.5267993]
[1730874626750,0.55,2600.7,2598.8,3.10274977]
[1730874626923,0.55,2600.7,2599.0,3.0]
[1730874627265,0.55,2600.7,2598.9,0.31027498]
[1730874627409,0.8005,2601.2,2598.8,0.09274977]
[1730874627410,0.55,2600.9,2598.8,0.09274977]
[1730874627720,4.39483,2600.9,2598.8,0.09274977]
[1730874627916,4.99508053,2601.0,2598.8,0.09274977]
[1730874628124,0.8005,2601.2,2598.3,0.21943207]
[1730874628125,4.99508053,2599.8,2598.3,0.21943207]
[1730874628424,3.8005,2600.4,2598.3,0.1266823]
[1730874628425,3.55,2599.7,2598.3,0.1266823]
[1730874628761,3.84579,2600.3,2598.3,0.1266823]
[1730874628762,0.55,2600.3,2598.3,0.1266823]
[1730874629055,0.55,2600.1,2598.3,0.1366823]
[1730874629263,4.99508053,2599.5,2598.3,0.1266823]
[1730874629579,0.55,2599.3,2598.3,0.1266823]
[1730874629754,0.55,2599.6,2598.3,0.1266823]
[1730874630064,0.55,2600.2,2598.3,0.1266823]
[1730874630224,1.10450805,2600.2,2598.3,0.1266823]
[1730874630431,0.55,2600.4,2598.3,0.1266823]
[1730874631023,4.39568,2600.4,2598.3,0.1266823]
[1730874631324,4.39567,2600.4,2598.4,3.0]
[1730874631549,4.39567,2600.4,2598.3,0.1266823]
[1730874631550,3.84683,2599.6,2598.3,0.1266823]
[1730874631753,0.55,2599.5,2598.3,0.1266823]
[1730874631935,0.55,2599.7,2598.3,0.1266823]
[1730874632136,0.905,2599.7,2598.3,0.1266823]
[1730874632342,4.75169,2599.7,2598.3,0.1266823]
[1730874632628,0.905,2599.7,2598.3,0.1266823]
[1730874632832,4.39692,2599.5,2598.3,0.1266823]
[1730874633366,0.55,2599.3,2598.3,0.1266823]
[1730874633531,0.55,2599.1,2598.3,0.1266823]
[1730874635128,0.55,2598.6,2598.3,0.1266823]
[1730874635669,0.55,2598.1,2596.9,0.39646023]
[1730874635873,0.55,2598.2,2596.1,0.09206336]
[1730874636236,0.55,2598.8,2596.5,0.01]
[1730874636576,3.84809,2598.7,2596.4,0.07700908]
[1730874636886,3.55,2598.4,2596.1,0.10206336]
[1730874637056,0.55,2598.2,2596.1,0.10206336]
[1730874637235,0.55,2598.2,2596.1,0.01]
[1730874638229,4.99508053,2597.9,2595.9,0.09206336]
[1730874638434,0.55,2597.8,2595.7,0.1366823]
[1730874638683,0.55450805,2597.7,2595.9,0.01]
[1730874638833,0.55450805,2597.7,2595.8,0.01]
[1730874638834,0.55,2597.8,2595.7,0.21874566]
[1730874639032,0.55,2597.8,2595.7,0.1266823]
[1730874639233,3.55,2597.3,2595.7,0.1266823]
[1730874639467,0.55,2597.3,2595.7,0.1266823]
[1730874639646,0.55,2596.6,2595.7,0.1266823]
[1730874640073,0.98767,2596.6,2595.7,0.1266823]
[1730874640730,3.55,2596.3,2595.7,0.1266823]
[1730874640871,0.8267,2596.2,2595.7,0.1266823]
[1730874641208,0.55,2595.2,2593.6,0.09206336]
[1730874641448,0.55,2595.2,2593.4,0.01]
[1730874641721,3.0,2595.8,2593.6,0.01]
[1730874642006,0.43767,2596.6,2594.5,0.01]
[1730874642225,0.03000008,2596.5,2594.2,0.40169298]
[1730874642507,0.03000008,2596.5,2592.9,0.7335041]
[1730874642508,0.03000008,2596.5,2594.6,0.49352611]
[1730874642716,0.03000008,2597.4,2594.8,0.09183313]
[1730874643006,0.03000008,2597.4,2595.2,0.55]
[1730874643223,0.03000008,2597.8,2596.3,3.0]
[1730874643370,0.03000008,2597.8,2594.0,5.0]
[1730874643371,0.03000008,2597.8,2596.4,0.3]
[1730874643573,0.03000008,2597.8,2595.5,0.55]
[1730874643769,0.01,2597.9,2595.5,0.55]
[1730874643969,0.17372931,2597.8,2595.5,0.55]
[1730874644175,0.18372931,2597.8,2595.4,0.55]
[1730874644424,0.17372931,2597.8,2595.4,0.55]
[1730874644635,0.17372931,2597.8,2595.5,0.09183313]
[1730874644781,0.01973831,2597.8,2596.2,0.64183313]
[1730874644981,0.01973831,2598.3,2596.2,0.64183313]
[1730874645177,0.01,2598.1,2596.1,0.55]
[1730874645419,0.01973831,2598.0,2595.9,0.55]
[1730874645781,0.01973831,2598.0,2596.0,0.68691551]
[1730874645989,0.01973831,2598.0,2596.3,3.0]
[1730874646186,0.01973831,2598.0,2596.1,0.55]
[1730874646187,0.01973831,2598.0,2596.4,0.3]
[1730874646520,0.01,2598.1,2596.3,3.0]
[1730874646828,0.01973831,2598.0,2596.6,3.0]
[1730874647424,0.8267,2599.0,2596.1,0.55]
[1730874647425,0.01973831,2598.4,2596.1,0.55]
[1730874647593,0.01973831,2598.4,2596.1,1.11321058]
[1730874648225,0.01973831,2598.4,2596.8,3.0]
[1730874648431,0.01973831,2598.7,2596.9,0.85]
[1730874648587,0.01,2598.6,2596.7,0.55]
[1730874648787,0.01973831,2598.5,2596.7,0.64158075]
[1730874649103,0.966389,2598.9,2597.0,0.09158075]
[1730874649284,0.01973831,2598.8,2597.1,3.0]
[1730874649486,0.01973831,2598.8,2597.2,0.30915807]
[1730874649687,0.01973831,2598.8,2597.4,3.0]
[1730874649982,0.01973831,2598.8,2596.7,0.55]
[1730874650187,0.56,2599.3,2597.5,3.0]
[1730874650188,0.02973831,2599.2,2597.5,3.0]
[1730874650621,0.01973831,2599.2,2597.6,0.07698342]
[1730874650822,0.01973831,2599.2,2597.6,0.09174465]
[1730874651129,0.01973831,2599.2,2597.7,0.09174465]
[1730874651328,0.01973831,2599.4,2597.7,0.09174465]
[1730874651625,0.01973831,2599.4,2597.9,0.09174465]
[1730874651828,0.01973831,2599.4,2598.1,0.09174465]
[1730874652127,0.01973831,2599.4,2598.0,0.09174465]
[1730874652428,0.761,2599.8,2598.2,0.09174465]
[1730874652429,0.01973831,2599.7,2598.2,0.09174465]
[1730874652634,0.01,2599.4,2598.3,0.09174465]
[1730874652793,0.01973831,2599.3,2598.0,0.09174465]
[1730874653639,0.01973831,2599.3,2597.9,0.091915]
[1730874654135,0.751,2599.1,2597.8,0.091915]
[1730874654305,0.751,2599.1,2595.5,1.93184499]
[1730874654306,0.01,2598.9,2597.6,0.091915]
[1730874654490,0.56973831,2598.8,2597.6,0.091915]
[1730874654825,0.56973831,2598.8,2595.6,0.48614229]
[1730874654826,0.57973831,2598.8,2597.5,0.091915]
[1730874655025,0.57973831,2598.8,2597.4,0.091915]
[1730874655638,0.57973831,2598.8,2595.6,1.04935329]
[1730874655639,0.01,2598.6,2597.3,0.091915]
[1730874655790,0.01973831,2598.5,2597.3,0.091915]
[1730874655997,0.01973831,2598.5,2597.4,0.091915]
[1730874656222,0.01973831,2598.5,2597.5,0.091915]
[1730874657245,0.01973831,2598.5,2597.7,0.091915]
[1730874657424,0.01973831,2598.9,2597.8,0.091915]
[1730874657589,0.01973831,2598.9,2597.7,0.091915]
[1730874657793,0.01973831,2598.9,2597.8,0.091915]
[1730874658424,0.01973831,2598.9,2597.9,0.091915]
[1730874659254,0.01973831,2598.9,2598.0,0.091915]
[1730874659619,0.01973831,2599.0,2598.0,0.091915]
[1730874660120,0.01,2598.7,2598.0,0.091915]
[1730874660456,0.8216,2598.5,2595.5,0.563211]
[1730874660662,0.01973831,2598.4,2597.7,0.09244504]
[1730874661017,0.01973831,2598.8,2597.9,0.09244504]
[1730874661263,0.01973831,2598.8,2598.2,0.09244504]
[1730874661437,0.01973831,2599.2,2598.4,0.09244504]
[1730874661955,0.01973831,2599.2,2598.6,0.09244504]
[1730874662162,0.8216,2599.7,2598.7,0.09244504]
[1730874662361,0.01973831,2599.6,2598.8,0.09244504]
[1730874662663,0.01973831,2599.6,2598.9,0.09244504]
[1730874662894,0.8216,2600.0,2599.1,0.09244504]
[1730874662895,0.01973831,2599.9,2599.1,0.09244504]
[1730874663156,0.01973831,2599.9,2599.4,0.09244504]
[1730874663368,0.01973831,2599.9,2599.3,0.09244504]
[1730874663516,0.01973831,2599.9,2599.4,0.09244504]
[1730874663712,0.01973831,2599.9,2597.8,0.82821329]
[1730874663713,0.01973831,2599.9,2599.5,0.09244504]
[1730874663958,0.01973831,2600.2,2599.6,0.09244504]
[1730874664167,0.01973831,2600.2,2599.7,0.09244504]
[1730874664319,0.01973831,2600.7,2599.7,0.09244504]
[1730874664520,0.01973831,2600.7,2597.8,0.85199026]
[1730874664521,0.01973831,2600.7,2599.8,0.09244504]
[1730874664719,0.01973831,2600.7,2600.0,0.09244504]
[1730874665274,0.01973831,2601.0,2600.0,0.09244504]
[1730874665786,0.01973831,2601.0,2598.5,0.55]
[1730874665993,0.01973831,2601.0,2600.1,0.08804346]
[1730874666195,0.01973831,2601.0,2600.2,0.08804346]
[1730874666349,0.01973831,2601.3,2600.2,0.08804346]
[1730874666549,0.01973831,2601.3,2600.3,0.08804346]
[1730874666986,0.01973831,2601.3,2600.2,0.08804346]
[1730874667200,0.02973831,2601.3,2600.2,0.08804346]
[1730874667351,0.01,2600.9,2599.8,0.08804346]
[1730874667550,0.01,2600.5,2599.5,0.08804346]
[1730874667787,0.01973831,2600.4,2599.1,0.08804346]
[1730874668381,0.01973831,2600.4,2599.2,0.08804346]
[1730874668581,0.01973831,2600.4,2599.1,0.08804346]
[1730874668786,0.01,2601.0,2599.1,0.08804346]
[1730874668787,0.01973831,2600.5,2599.1,0.08804346]
[1730874668954,0.01973831,2600.5,2599.4,0.08804346]
[1730874669152,0.01973831,2600.9,2599.5,0.0878095]
[1730874669357,0.01973831,2600.9,2599.4,0.0878095]
[1730874669656,0.01973831,2600.9,2599.6,0.0878095]
[1730874670106,0.01973831,2600.9,2599.7,0.0878095]
[1730874670515,0.01973831,2600.9,2599.8,0.0878095]
[1730874670854,0.01973831,2600.9,2600.0,0.6378095]
[1730874671002,1.0,2601.0,2600.0,0.55]
[1730874671429,1.0,2601.0,2599.8,0.50939294]
[1730874671430,1.0,2601.0,2599.9,0.55]
[1730874672161,1.0,2601.0,2599.9,1.05939294]
[1730874672750,1.0,2601.0,2600.0,0.50939294]
[1730874672951,1.0,2601.0,2600.1,0.55]
[1730874673159,1.0,2601.0,2600.1,1.05939294]
[1730874674431,1.0,2601.0,2600.3,0.55]
[1730874674634,1.0,2601.0,2600.5,0.55]
[1730874674956,1.0,2601.0,2600.7,0.55]
[1730874675267,1.0,2601.0,2600.9,0.55]
[1730874675443,1.0,2601.0,2600.7,0.62688364]